fUST/lending_fUST_20241110
["ID","MTS","AMOUNT","RATE_DAILY","PERIOD"]
[341738209,1731168024344,694.44444444,0.00020843,2]
[341738213,1731168379300,177.460795,0.00013973,2]
[341738217,1731168564154,-674.56340728,0.00020962,2]
[341738218,1731168585375,694.44444444,0.00020843,2]
[341738314,1731168638302,-694.44444444,0.00021917,2]
[341738315,1731168638311,-160.2986037,0.00026924,2]
[341738316,1731168638321,-166.536248,0.00027574,2]
[341738317,1731168638330,-904.97,0.000285,2]
[341738318,1731168638340,-500.0,0.00028767,2]
[341738319,1731168638349,-160.0,0.0002924,3]
[341738320,1731168638358,-186.654137,0.000293,2]
[341738321,1731168638367,-162.956537,0.000293,2]
[341738322,1731168638377,-277.964653,0.000293,2]
[341738323,1731168638387,-300.0,0.00029898,2]
[341738324,1731168638397,-300.0,0.00029898,2]
[341738325,1731168638406,-2139.19283604,0.00029899,3]
[341738326,1731168638415,-440.94353084,0.000299,2]
[341738327,1731168638425,-174.03601495,0.000299,2]
[341738328,1731168638434,-3948.92,0.0002999,10]
[341738329,1731168638444,-500.0,0.00029999,2]
[341738330,1731168638453,-500.0,0.00029999,2]
[341738331,1731168638463,-500.0,0.00029999,2]
[341738332,1731168638472,-500.0,0.00029999,2]
[341738333,1731168638584,-500.0,0.00029999,2]
[341738334,1731168638595,-500.0,0.00029999,2]
[341738335,1731168638605,-500.0,0.00029999,2]
[341738336,1731168638615,-500.0,0.00029999,2]
[341738337,1731168638625,-500.0,0.00029999,2]
[341738338,1731168638635,-500.0,0.00029999,2]
[341738339,1731168638645,-500.0,0.00029999,2]
[341738340,1731168638654,-500.0,0.00029999,2]
[341738341,1731168638664,-500.0,0.00029999,2]
[341738342,1731168638673,-500.0,0.00029999,2]
[341738343,1731168638682,-500.0,0.00029999,2]
[341738344,1731168638691,-500.0,0.00029999,2]
[341738345,1731168638700,-500.0,0.00029999,2]
[341738346,1731168638710,-500.0,0.00029999,2]
[341738347,1731168638719,-500.0,0.00029999,2]
[341738348,1731168638729,-500.0,0.00029999,2]
[341738349,1731168638738,-500.0,0.00029999,2]
[341738350,1731168638748,-500.0,0.00029999,2]
[341738351,1731168638757,-359.52596636,0.00029999,2]
[341738352,1731168638766,-500.0,0.00029999,2]
[341738353,1731168638776,-500.0,0.00029999,2]
[341738354,1731168638784,-500.0,0.00029999,2]
[341738355,1731168638794,-500.0,0.00029999,2]
[341738356,1731168638803,-500.0,0.00029999,2]
[341738357,1731168638811,-500.0,0.00029999,2]
[341738358,1731168638821,-500.0,0.00029999,2]
[341738359,1731168638830,-500.0,0.00029999,2]
[341738360,1731168638839,-500.0,0.00029999,2]
[341738361,1731168638848,-500.0,0.00029999,2]
[341738362,1731168638857,-500.0,0.00029999,2]
[341738363,1731168638866,-500.0,0.00029999,2]
[341738364,1731168638875,-500.0,0.00029999,2]
[341738365,1731168638884,-500.0,0.00029999,2]
[341738366,1731168638894,-500.0,0.00029999,2]
[341738367,1731168638903,-500.0,0.00029999,2]
[341738368,1731168638912,-490.23598733,0.0003,5]
[341738369,1731168638922,-151.0,0.0003,120]
[341738370,1731168638931,-78807.905,0.0003,30]
[341738371,1731168638940,-106000.0,0.0003,3]
[341738372,1731168638949,-250.0,0.0003,2]
[341738373,1731168638959,-462.11931886,0.0003,7]
[341738374,1731168638968,-186.654137,0.00030032,2]
[341738375,1731168638977,-162.956537,0.00030032,2]
[341738376,1731168638986,-3206.277,0.00030063,2]
[341738377,1731168638996,-440.94353084,0.00030136,2]
[341738378,1731168639005,-500.0,0.00030136,7]
[341738379,1731168639014,-502.51288763,0.00030136,2]
[341738380,1731168639025,-500.0,0.00030136,2]
[341738381,1731168639035,-500.0,0.00030136,2]
[341738382,1731168639045,-577.17301076,0.00030136,2]
[341738383,1731168639055,-500.0,0.00030136,2]
[341738384,1731168639064,-501.97620849,0.00030136,2]
[341738385,1731168639073,-500.0,0.00030136,2]
[341738386,1731168639083,-500.0,0.00030136,2]
[341738387,1731168639092,-502.62968551,0.00030136,2]
[341738388,1731168639101,-500.0,0.00030136,2]
[341738389,1731168639112,-500.0,0.00030136,2]
[341738390,1731168639122,-500.0,0.00030136,2]
[341738391,1731168639135,-500.0,0.00030136,2]
[341738392,1731168639144,-500.0,0.00030136,2]
[341738393,1731168639153,-500.0,0.00030136,2]
[341738394,1731168639163,-504.93598763,0.00030136,2]
[341738395,1731168639172,-505.007352,0.00030136,2]
[341738396,1731168639181,-500.0,0.00030136,2]
[341738397,1731168639190,-500.0,0.00030136,2]
[341738398,1731168639199,-501.22433543,0.00030136,2]
[341738399,1731168639209,-501.78208655,0.00030136,2]
[341738400,1731168639218,-500.07219699,0.00030136,2]
[341738401,1731168639227,-502.43392315,0.00030136,2]
[341738402,1731168639237,-500.0,0.00030136,2]
[341738403,1731168639246,-500.0,0.00030136,2]
[341738404,1731168639256,-500.0,0.00030136,2]
[341738405,1731168639265,-179.06252389,0.00030136,2]
[341738406,1731168639275,-505.4798151,0.00030136,2]
[341738407,1731168639284,-391.4469924,0.00030136,2]
[341738408,1731168639294,-500.0,0.00030136,2]
[341738409,1731168639303,-505.7962541,0.00030136,2]
[341738410,1731168639313,-500.0,0.00030136,2]
[341738411,1731168639322,-500.0,0.00030136,2]
[341738412,1731168639331,-503.8799329,0.00030136,2]
[341738413,1731168639340,-502.44451499,0.00030136,2]
[341738414,1731168639350,-500.0,0.00030136,2]
[341738415,1731168639360,-500.0,0.00030136,2]
[341738416,1731168639370,-551.28808742,0.00030136,2]
[341738417,1731168639379,-500.0,0.00030136,2]
[341738418,1731168639388,-500.0,0.00030136,2]
[341738419,1731168639398,-500.0,0.00030136,2]
[341738420,1731168639406,-500.0,0.00030136,2]
[341738421,1731168639418,-500.0,0.00030136,2]
[341738422,1731168639428,-500.0,0.00030136,2]
[341738423,1731168639438,-500.0,0.00030136,2]
[341738424,1731168639447,-500.0,0.00030136,2]
[341738425,1731168639457,-500.0,0.00030136,2]
[341738426,1731168639466,-500.89767585,0.00030136,2]
[341738427,1731168639477,-500.0,0.00030136,2]
[341738428,1731168639487,-500.0,0.00030136,2]
[341738429,1731168639497,-500.0,0.00030136,2]
[341738430,1731168639506,-500.0,0.00030136,2]
[341738431,1731168639515,-440.08138505,0.00030136,2]
[341738432,1731168639526,-500.0,0.00030136,2]
[341738433,1731168639535,-500.0,0.00030136,2]
[341738434,1731168639544,-500.0,0.00030136,2]
[341738435,1731168639554,-500.0,0.00030136,2]
[341738436,1731168639563,-500.0,0.00030136,2]
[341738437,1731168639573,-500.0,0.00030136,2]
[341738438,1731168639583,-500.0,0.00030136,2]
[341738439,1731168639592,-500.0,0.00030136,2]
[341738440,1731168639602,-501.14916247,0.00030136,2]
[341738441,1731168639611,-500.0,0.00030136,2]
[341738442,1731168639620,-500.0,0.00030136,2]
[341738443,1731168639630,-500.0,0.00030136,2]
[341738444,1731168639640,-500.0,0.00030136,2]
[341738445,1731168639649,-500.0,0.00030136,2]
[341738446,1731168639659,-520.91672277,0.00030136,2]
[341738447,1731168639668,-500.0,0.00030136,2]
[341738448,1731168639677,-500.0,0.00030136,2]
[341738449,1731168639687,-500.0,0.00030136,2]
[341738450,1731168639696,-501.69076128,0.00030136,2]
[341738451,1731168639706,-504.18340444,0.00030136,2]
[341738452,1731168639715,-500.0,0.00030136,2]
[341738453,1731168639724,-500.0,0.00030136,2]
[341738454,1731168639734,-508.60201377,0.00030136,2]
[341738455,1731168639743,-500.0,0.00030136,2]
[341738456,1731168639753,-500.0,0.00030136,2]
[341738457,1731168639762,-500.0,0.00030136,2]
[341738458,1731168639771,-500.0,0.00030136,2]
[341738459,1731168639781,-500.0,0.00030136,2]
[341738460,1731168639790,-500.0,0.00030136,2]
[341738461,1731168639799,-500.0,0.00030136,2]
[341738462,1731168639808,-500.0,0.00030136,2]
[341738463,1731168639818,-500.0,0.00030136,2]
[341738464,1731168639827,-500.0,0.00030136,2]
[341738465,1731168639836,-503.6563992,0.00030136,2]
[341738466,1731168639845,-500.0,0.00030136,2]
[341738467,1731168639854,-500.0,0.00030136,2]
[341738468,1731168639864,-500.0,0.00030136,2]
[341738469,1731168639874,-500.0,0.00030136,2]
[341738470,1731168639883,-632.71,0.00030136,2]
[341738471,1731168639892,-1746.82,0.00030136,2]
[341738472,1731168639902,-500.0,0.00030136,2]
[341738473,1731168639910,-500.0,0.00030136,2]
[341738474,1731168639919,-500.0,0.00030136,2]
[341738475,1731168639929,-500.0,0.00030136,2]
[341738476,1731168639938,-500.0,0.00030136,2]
[341738477,1731168639947,-500.0,0.00030136,2]
[341738478,1731168639956,-500.0,0.00030136,2]
[341738479,1731168639965,-500.0,0.00030136,2]
[341738480,1731168639975,-500.0,0.00030136,2]
[341738481,1731168639984,-500.0,0.00030136,2]
[341738482,1731168639993,-500.0,0.00030136,2]
[341738483,1731168640002,-500.0,0.00030136,2]
[341738484,1731168640011,-500.0,0.00030136,2]
[341738485,1731168640020,-500.0,0.00030136,2]
[341738486,1731168640029,-1573.25,0.00030136,2]
[341738487,1731168640038,-500.0,0.00030136,2]
[341738488,1731168640047,-500.0,0.00030136,2]
[341738489,1731168640056,-500.0,0.00030136,2]
[341738490,1731168640065,-501.26577158,0.00030136,2]
[341738491,1731168640074,-500.0,0.00030136,2]
[341738492,1731168640083,-500.0,0.00030136,2]
[341738493,1731168640092,-500.0,0.00030136,2]
[341738494,1731168640102,-501.09000898,0.00030136,2]
[341738495,1731168640111,-500.0,0.00030136,2]
[341738496,1731168640120,-500.0,0.00030136,2]
[341738497,1731168640132,-500.0,0.00030136,2]
[341738498,1731168640141,-502.49058802,0.00030136,2]
[341738499,1731168640150,-500.0,0.00030136,2]
[341738500,1731168640159,-500.0,0.00030136,2]
[341738501,1731168640168,-500.0,0.00030136,2]
[341738502,1731168640177,-500.0,0.00030136,2]
[341738503,1731168640186,-500.0,0.00030136,2]
[341738504,1731168640195,-500.0,0.00030136,2]
[341738505,1731168640204,-500.0,0.00030136,2]
[341738506,1731168640213,-274.49527521,0.00030137,2]
[341738507,1731168640222,-158.82636869,0.00030167,2]
[341738508,1731168640231,-500.0,0.00030173,5]
[341738509,1731168640240,-440.94353084,0.00030371,2]
[341738510,1731168640250,-500.0,0.000304,2]
[341738511,1731168640259,-1573.25,0.00030409,2]
[341738512,1731168640269,-500.0,0.0003041,2]
[341738513,1731168640278,-500.0,0.0003041,2]
[341738514,1731168640287,-500.0,0.0003041,2]
[341738515,1731168640295,-500.0,0.0003041,2]
[341738516,1731168640305,-500.0,0.0003041,2]
[341738517,1731168640314,-500.0,0.0003041,2]
[341738518,1731168640323,-505.72,0.0003041,2]
[341738519,1731168640332,-500.0,0.0003041,2]
[341738520,1731168640341,-500.0,0.0003041,2]
[341738521,1731168640350,-500.0,0.0003041,2]
[341738522,1731168640359,-500.0,0.0003041,2]
[341738523,1731168640368,-500.0,0.0003041,2]
[341738524,1731168640379,-500.0,0.0003041,2]
[341738525,1731168640388,-500.0,0.0003041,2]
[341738526,1731168640397,-500.0,0.0003041,2]
[341738527,1731168640407,-500.0,0.0003041,2]
[341738528,1731168640415,-500.0,0.0003041,2]
[341738529,1731168640424,-500.0,0.0003041,2]
[341738530,1731168640433,-524.3756,0.0003041,2]
[341738531,1731168640442,-500.0,0.0003041,2]
[341738532,1731168640451,-500.0,0.0003041,2]
[341738533,1731168640460,-500.0,0.0003041,2]
[341738534,1731168640470,-500.0,0.0003041,2]
[341738535,1731168640479,-500.0,0.0003041,2]
[341738536,1731168640488,-500.0,0.0003041,2]
[341738537,1731168640497,-500.0,0.0003041,2]
[341738538,1731168640506,-500.0,0.0003041,2]
[341738539,1731168640515,-500.0,0.0003041,2]
[341738540,1731168640524,-500.0,0.0003041,2]
[341738541,1731168640533,-513.48397291,0.0003041,2]
[341738542,1731168640543,-500.0,0.0003041,2]
[341738543,1731168640552,-500.0,0.0003041,2]
[341738544,1731168640560,-500.0,0.0003041,2]
[341738545,1731168640570,-500.0,0.0003041,2]
[341738546,1731168640579,-510.69540923,0.0003041,2]
[341738547,1731168640587,-500.0,0.0003041,2]
[341738548,1731168640597,-500.0,0.0003041,2]
[341738549,1731168640605,-500.0,0.0003041,2]
[341738550,1731168640614,-500.0,0.0003041,2]
[341738551,1731168640624,-500.0,0.0003041,2]
[341738552,1731168640633,-500.0,0.0003041,2]
[341738553,1731168640642,-500.0,0.0003041,2]
[341738554,1731168640652,-500.0,0.0003041,2]
[341738555,1731168640661,-500.0,0.0003041,2]
[341738556,1731168640671,-632.71,0.0003041,2]
[341738557,1731168640679,-1746.82,0.0003041,2]
[341738558,1731168640688,-500.0,0.0003041,2]
[341738559,1731168640698,-579.40207446,0.0003041,2]
[341738560,1731168640707,-502.61750901,0.0003041,2]
[341738561,1731168640717,-500.0,0.0003041,2]
[341738562,1731168640727,-500.0,0.0003041,2]
[341738563,1731168640736,-500.0,0.0003041,2]
[341738564,1731168640746,-500.0,0.0003041,2]
[341738565,1731168640755,-500.0,0.0003041,2]
[341738566,1731168640764,-500.0,0.0003041,2]
[341738567,1731168640774,-500.0,0.0003041,2]
[341738568,1731168640783,-500.0,0.0003041,2]
[341738569,1731168640792,-500.0,0.0003041,2]
[341738570,1731168640803,-500.0,0.0003041,2]
[341738571,1731168640814,-500.0,0.0003041,2]
[341738572,1731168640823,-500.0,0.0003041,2]
[341738573,1731168640832,-500.0,0.0003041,2]
[341738574,1731168640841,-500.0,0.0003041,2]
[341738575,1731168640850,-440.94353084,0.00030607,2]
[341738576,1731168640859,-484.99142324,0.00030683,2]
[341738577,1731168640869,-500.0,0.00030683,2]
[341738578,1731168640884,-187.03594124,0.00030683,2]
[341738579,1731168640893,-191.23930074,0.00030683,2]
[341738580,1731168640902,-500.0,0.00030683,2]
[341738581,1731168640911,-500.0,0.00030683,2]
[341738582,1731168640921,-500.0,0.00030683,2]
[341738583,1731168640929,-500.0,0.00030683,2]
[341738584,1731168640939,-500.0,0.00030683,2]
[341738585,1731168640948,-274.85811561,0.00030683,2]
[341738586,1731168640957,-500.0,0.00030684,2]
[341738587,1731168641049,-647.6287485,0.00030684,2]
[341738588,1731168641059,-500.0,0.00030684,2]
[341738589,1731168641068,-500.0,0.00030684,2]
[341738590,1731168641079,-500.0,0.00030684,2]
[341738591,1731168641089,-500.0,0.00030684,2]
[341738592,1731168641100,-454.27,0.00030684,2]
[341738593,1731168641111,-500.0,0.00030684,2]
[341738594,1731168641122,-500.0,0.00030684,2]
[341738595,1731168641132,-500.0,0.00030684,2]
[341738596,1731168641142,-500.0,0.00030684,2]
[341738597,1731168641151,-500.0,0.00030684,2]
[341738598,1731168641160,-500.0,0.00030684,2]
[341738599,1731168641169,-500.0,0.00030684,2]
[341738600,1731168641179,-500.0,0.00030684,2]
[341738601,1731168641189,-500.0,0.00030684,2]
[341738602,1731168641199,-500.0,0.00030684,2]
[341738603,1731168641220,-500.0,0.00030684,2]
[341738604,1731168641233,-500.0,0.00030684,2]
[341738605,1731168641243,-500.0,0.00030684,2]
[341738606,1731168641255,-550.91,0.00030684,2]
[341738607,1731168641267,-500.0,0.00030684,2]
[341738608,1731168641277,-500.0,0.00030684,2]
[341738609,1731168641288,-500.0,0.00030684,2]
[341738610,1731168641299,-500.0,0.00030684,2]
[341738611,1731168641311,-500.0,0.00030684,2]
[341738612,1731168641320,-500.0,0.00030684,2]
[341738613,1731168641331,-500.0,0.00030684,2]
[341738614,1731168641343,-500.0,0.00030684,2]
[341738615,1731168641354,-500.0,0.00030684,2]
[341738616,1731168641365,-548.25,0.00030684,2]
[341738617,1731168641374,-643.86,0.00030684,2]
[341738618,1731168641384,-500.0,0.00030684,2]
[341738619,1731168641393,-500.0,0.00030684,2]
[341738620,1731168641403,-500.0,0.00030684,2]
[341738621,1731168641413,-500.0,0.00030684,2]
[341738622,1731168641423,-632.71,0.00030684,2]
[341738623,1731168641432,-1746.82,0.00030684,2]
[341738624,1731168641442,-194.68,0.00030684,2]
[341738625,1731168641451,-500.0,0.00030684,2]
[341738626,1731168641461,-500.0,0.00030684,2]
[341738627,1731168641470,-500.0,0.00030684,2]
[341738628,1731168641480,-500.0,0.00030684,2]
[341738629,1731168641489,-500.0,0.00030684,2]
[341738630,1731168641499,-537.16,0.00030684,2]
[341738631,1731168641508,-500.0,0.00030684,2]
[341738632,1731168641517,-500.0,0.00030684,2]
[341738633,1731168641528,-500.0,0.00030684,2]
[341738634,1731168641539,-500.0,0.00030684,2]
[341738635,1731168641550,-368.09,0.00030684,2]
[341738636,1731168641560,-500.0,0.00030684,2]
[341738637,1731168641569,-500.0,0.00030684,2]
[341738638,1731168641578,-186.654137,0.00030765,2]
[341738639,1731168641587,-162.956537,0.00030765,2]
[341738640,1731168641597,-440.94353084,0.00030843,2]
[341738641,1731168641606,-160.264,0.000309,10]
[341738642,1731168641616,-1573.25,0.00030957,2]
[341738643,1731168641627,-500.0,0.00030958,2]
[341738644,1731168641636,-500.0,0.00030958,2]
[341738645,1731168641646,-418.27,0.00030958,2]
[341738646,1731168641655,-500.0,0.00030958,2]
[341738647,1731168641665,-554.91817893,0.00030958,2]
[341738648,1731168641675,-500.0,0.00030958,2]
[341738649,1731168641684,-510.63190878,0.00030958,2]
[341738650,1731168641693,-500.0,0.00030958,2]
[341738651,1731168641703,-500.0,0.00030958,2]
[341738652,1731168641713,-500.0,0.00030958,2]
[341738653,1731168641723,-452.76,0.00030958,2]
[341738654,1731168641734,-500.0,0.00030958,2]
[341738655,1731168641743,-592.57,0.00030958,2]
[341738656,1731168641753,-626.54,0.00030958,2]
[341738657,1731168641763,-346.1,0.00030958,2]
[341738658,1731168641772,-500.0,0.00030958,2]
[341738659,1731168641782,-334.91,0.00030958,2]
[341738660,1731168641792,-231.25,0.00030958,2]
[341738661,1731168641801,-500.0,0.00030958,2]
[341738662,1731168641811,-500.0,0.00030958,2]
[341738663,1731168641820,-316.4,0.00030958,2]
[341738664,1731168641829,-307.13,0.00030958,2]
[341738665,1731168641839,-500.0,0.00030958,2]
[341738666,1731168641849,-500.0,0.00030958,2]
[341738667,1731168641859,-233.81,0.00030958,2]
[341738668,1731168641868,-500.0,0.00030958,2]
[341738669,1731168641879,-176.16,0.00030958,2]
[341738670,1731168641889,-500.0,0.00030958,2]
[341738671,1731168641898,-304.47,0.00030958,2]
[341738672,1731168641907,-632.71,0.00030958,2]
[341738673,1731168641916,-1746.82,0.00030958,2]
[341738674,1731168641926,-500.0,0.00030958,2]
[341738675,1731168641935,-399.43,0.00030958,2]
[341738676,1731168641943,-152.51,0.00030958,2]
[341738677,1731168641953,-454.93,0.00030958,2]
[341738678,1731168641962,-307.09,0.00030958,2]
[341738679,1731168641971,-500.0,0.00030958,2]
[341738680,1731168641982,-417.68,0.00030958,2]
[341738681,1731168641991,-500.0,0.00030958,2]
[341738682,1731168642002,-500.0,0.00030958,2]
[341738683,1731168642011,-500.0,0.00030958,2]
[341738684,1731168642022,-435.97,0.00030958,2]
[341738685,1731168642032,-5050.29347326,0.00031,5]
[341738686,1731168642043,-440.94353084,0.00031079,2]
[341738687,1731168642055,-250.0,0.000311,26]
[341738688,1731168642064,-174.03601495,0.00031217,2]
[341738689,1731168642074,-500.0,0.00031232,10]
[341738690,1731168642085,-500.0,0.00031232,2]
[341738691,1731168642095,-500.0,0.00031232,2]
[341738692,1731168642106,-500.0,0.00031232,2]
[341738693,1731168642116,-500.0,0.00031232,2]
[341738694,1731168642127,-500.0,0.00031232,2]
[341738695,1731168642140,-500.0,0.00031232,2]
[341738696,1731168642151,-187.14,0.00031232,2]
[341738697,1731168642164,-500.0,0.00031232,2]
[341738698,1731168642175,-268.01,0.00031232,2]
[341738699,1731168642187,-500.0,0.00031232,2]
[341738700,1731168642198,-435.67,0.00031232,2]
[341738701,1731168642210,-500.0,0.00031232,2]
[341738702,1731168642220,-500.0,0.00031232,2]
[341738703,1731168642230,-232.13,0.00031232,2]
[341738704,1731168642241,-511.65,0.00031232,2]
[341738705,1731168642251,-632.71,0.00031232,2]
[341738706,1731168642263,-1746.82,0.00031232,2]
[341738707,1731168642273,-500.0,0.00031232,2]
[341738708,1731168642284,-533.47,0.00031232,2]
[341738709,1731168642293,-500.0,0.00031232,2]
[341738710,1731168642304,-500.0,0.00031232,2]
[341738711,1731168642315,-500.0,0.00031232,2]
[341738712,1731168642326,-12768.12,0.000313,4]
[341738713,1731168642335,-440.94353084,0.00031314,2]
[341738714,1731168642345,-80752.61264572,0.00031315,2]
[341738715,1731168642355,-151.0,0.00031317,7]
[341738716,1731168642365,-166.536248,0.00031333,2]
[341738717,1731168642375,-12264.66719734,0.00031411,2]
[341738718,1731168642385,-16678.21387111,0.00031426,3]
[341738719,1731168642394,-1000.0,0.00031436,2]
[341738720,1731168642403,-400.0,0.00031441,3]
[341738721,1731168642414,-500.0,0.00031506,2]
[341738722,1731168642423,-597.23,0.00031506,2]
[341738723,1731168642433,-500.0,0.00031506,2]
[341738724,1731168642444,-500.0,0.00031506,2]
[341738725,1731168642453,-500.0,0.00031506,2]
[341738726,1731168642462,-500.0,0.00031506,2]
[341738727,1731168642471,-368.17,0.00031506,2]
[341738728,1731168642481,-365.72,0.00031506,2]
[341738729,1731168642490,-500.0,0.00031506,2]
[341738730,1731168642500,-500.0,0.00031506,2]
[341738731,1731168642510,-632.71,0.00031506,2]
[341738732,1731168642520,-1746.82,0.00031506,2]
[341738733,1731168642529,-500.0,0.00031506,2]
[341738734,1731168642538,-500.0,0.00031506,2]
[341738735,1731168642548,-500.0,0.00031506,2]
[341738736,1731168642558,-319.28,0.00031506,2]
[341738737,1731168642568,-1573.25,0.00031525,2]
[341738738,1731168642577,-500.0,0.00031526,2]
[341738739,1731168642587,-500.0,0.00031526,2]
[341738740,1731168642597,-500.0,0.00031526,2]
[341738741,1731168642607,-500.0,0.00031526,2]
[341738742,1731168642617,-500.0,0.00031526,2]
[341738743,1731168642627,-500.0,0.00031526,2]
[341738744,1731168642636,-500.0,0.00031526,2]
[341738746,1731168642645,-500.0,0.00031526,2]
[341738748,1731168642655,-500.0,0.00031526,2]
[341738749,1731168642664,-500.0,0.00031526,2]
[341738750,1731168642673,-500.0,0.00031526,2]
[341738751,1731168642683,-500.0,0.00031526,2]
[341738753,1731168642692,-500.0,0.00031526,2]
[341738754,1731168642702,-500.0,0.00031526,2]
[341738755,1731168642711,-500.0,0.00031526,2]
[341738756,1731168642721,-500.0,0.00031526,2]
[341738757,1731168642731,-500.0,0.00031526,2]
[341738758,1731168642740,-500.0,0.00031526,2]
[341738760,1731168642750,-500.0,0.00031526,2]
[341738763,1731168642759,-500.0,0.00031526,2]
[341738764,1731168642769,-500.0,0.00031526,2]
[341738765,1731168642778,-500.0,0.00031526,2]
[341738766,1731168642793,-500.0,0.00031526,2]
[341738767,1731168642803,-500.0,0.00031526,2]
[341738768,1731168642813,-500.0,0.00031526,2]
[341738769,1731168642822,-500.0,0.00031526,2]
[341738770,1731168642831,-500.0,0.00031526,2]
[341738771,1731168642841,-500.0,0.00031526,2]
[341738772,1731168642851,-500.0,0.00031526,2]
[341738773,1731168642860,-586.34610552,0.00031526,2]
[341738775,1731168642869,-500.0,0.00031526,2]
[341738776,1731168642880,-500.0,0.00031526,2]
[341738777,1731168642889,-500.0,0.00031526,2]
[341738778,1731168642900,-354.92376797,0.00031526,2]
[341738779,1731168642909,-500.0,0.00031526,2]
[341738780,1731168642918,-500.0,0.00031526,2]
[341738781,1731168642928,-500.0,0.00031526,2]
[341738782,1731168642941,-500.0,0.00031526,2]
[341738783,1731168642950,-506.24474513,0.00031526,2]
[341738784,1731168642959,-500.0,0.00031526,2]
[341738785,1731168642969,-500.0,0.00031526,2]
[341738786,1731168642978,-503.78889593,0.00031526,2]
[341738787,1731168642990,-500.0,0.00031526,2]
[341738788,1731168642999,-345.78544429,0.00031526,2]
[341738789,1731168643010,-500.0,0.00031526,2]
[341738790,1731168643019,-297.03363868,0.00031526,2]
[341738791,1731168643029,-500.0,0.00031526,2]
[341738792,1731168643039,-500.0,0.00031526,2]
[341738793,1731168643049,-500.0,0.00031526,2]
[341738794,1731168643058,-500.0,0.00031526,2]
[341738795,1731168643068,-500.0,0.00031526,2]
[341738796,1731168643077,-500.0,0.00031526,2]
[341738797,1731168643087,-500.0,0.00031526,2]
[341738798,1731168643097,-500.0,0.00031526,2]
[341738799,1731168643106,-509.30236651,0.00031526,2]
[341738801,1731168643116,-500.0,0.00031526,2]
[341738802,1731168643125,-500.0,0.00031526,2]
[341738803,1731168643135,-402.5509113,0.00031526,2]
[341738804,1731168643144,-500.0,0.00031526,2]
[341738805,1731168643154,-500.0,0.00031526,2]
[341738806,1731168643163,-517.89125779,0.00031526,2]
[341738807,1731168643172,-500.0,0.00031526,2]
[341738808,1731168643182,-500.0,0.00031526,2]
[341738809,1731168643191,-500.0,0.00031526,2]
[341738810,1731168643200,-500.0,0.00031526,2]
[341738811,1731168643210,-500.0,0.00031526,2]
[341738812,1731168643219,-500.0,0.00031526,2]
[341738813,1731168643229,-519.49,0.00031526,2]
[341738814,1731168643239,-500.0,0.00031526,2]
[341738815,1731168643250,-500.0,0.00031526,2]
[341738816,1731168643259,-414.90287553,0.00031526,2]
[341738817,1731168643269,-500.0,0.00031526,2]